fUSD/lending_fUSD_20251201
["ID","MTS","AMOUNT","RATE_DAILY","PERIOD"]
[395318863,1764618653630,-490.0,0.00026576,2]
[395318864,1764618653639,-500.0,0.00026576,2]
[395318865,1764618653650,-500.0,0.00026576,2]
[395318866,1764618653660,-150.0,0.00026576,2]
[395318867,1764618653670,-151.92540351,0.00026576,2]
[395318868,1764618653680,-260.04113565,0.00026576,2]
[395318869,1764618653690,-252.7415751,0.00026576,2]
[395318870,1764618653700,-150.0,0.00026576,2]
[395318871,1764618653710,-500.0,0.00026576,2]
[395318872,1764618653720,-150.0,0.00026576,2]
[395318873,1764618653730,-150.0,0.00026576,2]
[395318874,1764618653740,-150.0,0.00026576,2]
[395318875,1764618653750,-500.0,0.00026576,2]
[395318876,1764618653760,-500.0,0.00026576,2]
[395318877,1764618653770,-611.22,0.00026676,2]
[395318878,1764618653780,-290.50946253,0.00026699,2]
[395318879,1764618653791,-479.82,0.00026712,2]
[395318880,1764618653801,-500.0,0.00026713,2]
[395318881,1764618653811,-150.0,0.00026713,2]
[395318882,1764618653821,-500.0,0.00026713,2]
[395318883,1764618653831,-500.0,0.00026713,2]
[395318884,1764618653843,-150.0,0.00026713,2]
[395318885,1764618653853,-500.0,0.00026713,2]
[395318886,1764618653864,-500.0,0.00026713,2]
[395318887,1764618653874,-629.11434377,0.00026713,2]
[395318888,1764618653884,-500.0,0.00026713,2]
[395318889,1764618653894,-500.0,0.00026713,2]
[395318890,1764618653906,-490.0,0.00026713,2]
[395318891,1764618653916,-500.0,0.00026713,2]
[395318892,1764618653926,-500.0,0.00026713,2]
[395318893,1764618653936,-150.0,0.00026713,2]
[395318894,1764618653947,-150.0,0.00026713,2]
[395318895,1764618653957,-500.0,0.00026713,2]
[395318896,1764618653966,-225.27423133,0.00026713,2]
[395318897,1764618653978,-500.0,0.00026713,2]
[395318898,1764618653988,-500.0,0.00026713,2]
[395318899,1764618653999,-262.0,0.00026849,2]
[395318900,1764618654010,-500.0,0.0002685,2]
[395318901,1764618654023,-288.42922167,0.0002685,2]
[395318902,1764618654034,-500.0,0.0002685,2]
[395318903,1764618654045,-520.28810735,0.0002685,2]
[395318904,1764618654055,-500.0,0.0002685,2]
[395318905,1764618654064,-446.65279503,0.0002685,2]
[395318906,1764618654075,-500.0,0.0002685,2]
[395318907,1764618654085,-500.0,0.0002685,2]
[395318908,1764618654096,-490.0,0.0002685,2]
[395318909,1764618654106,-500.0,0.0002685,2]
[395318910,1764618654116,-500.0,0.0002685,2]
[395318911,1764618654126,-283.28636591,0.0002685,2]
[395318912,1764618654135,-550.88958633,0.0002685,2]
[395318913,1764618654145,-500.0,0.0002685,2]
[395318914,1764618654155,-500.0,0.0002685,2]
[395318915,1764618654165,-572.860519,0.0002695,120]
[395318916,1764618654175,-597.89,0.00026986,2]
[395318917,1764618654185,-409.00985602,0.00026986,2]
[395318918,1764618654195,-500.0,0.00026987,2]
[395318919,1764618654206,-500.0,0.00026987,2]
[395318920,1764618654216,-500.0,0.00026987,2]
[395318921,1764618654226,-500.0,0.00026987,2]
[395318922,1764618654236,-490.0,0.00026987,2]
[395318923,1764618654246,-500.0,0.00026987,2]
[395318924,1764618654256,-500.0,0.00026987,2]
[395318925,1764618654266,-500.0,0.00026987,2]
[395318926,1764618654276,-500.0,0.00026987,2]
[395318927,1764618654285,-6584.9467,0.00027,2]
[395318928,1764618654295,-500.0,0.00027124,2]
[395318929,1764618654305,-485.76083111,0.00027124,2]
[395318930,1764618654314,-225.37953766,0.00027124,2]
[395318931,1764618654324,-500.0,0.00027124,2]
[395318932,1764618654333,-490.0,0.00027124,2]
[395318933,1764618654343,-500.0,0.00027124,2]
[395318934,1764618654353,-500.0,0.00027124,2]
[395318935,1764618654363,-500.0,0.00027124,2]
[395318936,1764618654373,-500.0,0.00027124,2]
[395318937,1764618654383,-500.0,0.00027216,2]
[395318938,1764618654393,-262.0,0.0002726,2]
[395318939,1764618654402,-500.0,0.00027261,2]
[395318940,1764618654412,-500.0,0.00027261,2]
[395318941,1764618654421,-490.0,0.00027261,2]
[395318942,1764618654431,-500.0,0.00027261,2]
[395318943,1764618654440,-500.0,0.00027261,2]
[395318944,1764618654450,-152.0,0.00027261,2]
[395318945,1764618654460,-500.0,0.00027261,2]
[395318946,1764618654470,-150.0,0.00027369,2]
[395318947,1764618654479,-300.0,0.00027397,2]
[395318948,1764618654489,-500.0,0.00027397,14]
[395318949,1764618654498,-151.0,0.00027397,7]
[395318950,1764618654508,-151.0,0.00027397,7]
[395318951,1764618654517,-163.578247,0.00027397,7]
[395318952,1764618654526,-500.0,0.00027398,2]
[395318953,1764618654535,-500.0,0.00027398,2]
[395318954,1764618654545,-490.0,0.00027398,2]
[395318955,1764618654555,-300.0,0.00027398,2]
[395318956,1764618654564,-504.50796617,0.00027398,2]
[395318957,1764618654573,-440.0,0.00027398,2]
[395318958,1764618654583,-4783.12,0.00027429,2]
[395318959,1764618654592,-175.70054233,0.0002748,30]
[395318960,1764618654601,-1214.1,0.000275,7]
[395318961,1764618654611,-500.0,0.00027535,2]
[395318962,1764618654620,-500.0,0.00027535,2]
[395318963,1764618654630,-490.0,0.00027535,2]
[395318964,1764618654639,-7214.07,0.00027671,2]
[395318965,1764618654648,-262.0,0.00027671,2]
[395318966,1764618654658,-500.0,0.00027672,2]
[395318967,1764618654667,-490.0,0.00027672,2]
[395318968,1764618654676,-298.26089446,0.00027728,2]
[395318969,1764618654686,-300.0,0.00027728,2]
[395318970,1764618654696,-500.0,0.00027809,2]
[395318971,1764618654705,-490.0,0.00027809,2]
[395318972,1764618654715,-154.09145493,0.00027899,2]
[395318973,1764618654724,-500.0,0.00027946,2]
[395318974,1764618654733,-490.0,0.00027946,2]
[395318975,1764618654743,-2292.0,0.00027969,2]
[395318976,1764618654753,-427.65493559,0.00028,7]
[395318977,1764618654762,-157.64132353,0.00028062,2]
[395318978,1764618654771,-262.0,0.00028082,2]
[395318979,1764618654780,-500.0,0.00028083,2]
[395318980,1764618654789,-490.0,0.00028083,2]
[395318981,1764618654799,-500.0,0.0002822,2]
[395318982,1764618654808,-490.0,0.0002822,2]
[395318983,1764618654818,-500.0,0.00028246,7]
[395318984,1764618654827,-500.0,0.00028266,7]
[395318985,1764618654836,-500.0,0.00028357,2]
[395318986,1764618654846,-490.0,0.00028357,2]
[395318987,1764618654855,-262.0,0.00028493,2]
[395318988,1764618654865,-500.0,0.00028494,2]
[395318989,1764618654874,-490.0,0.00028494,2]
[395318990,1764618654883,-500.0,0.00028631,2]
[395318991,1764618654893,-490.0,0.00028631,2]
[395318992,1764618654902,-410.7,0.000287,14]
[395318993,1764618654912,-500.0,0.00028768,2]
[395318994,1764618654922,-490.0,0.00028768,2]
[395318995,1764618654931,-500.0,0.00028847,31]
[395318996,1764618654941,-262.0,0.00028904,2]
[395318997,1764618654950,-500.0,0.00028905,2]
[395318998,1764618654960,-490.0,0.00028905,2]
[395318999,1764618654969,-450.05888662,0.00028933,2]
[395319000,1764618654979,-568.0,0.00029042,2]
[395319001,1764618654988,-490.0,0.00029042,2]
[395319002,1764618654999,-309.29654756,0.00029097,2]
[395319003,1764618655008,-500.0,0.00029111,7]
[395319004,1764618655021,-500.0,0.00029178,7]
[395319005,1764618655031,-490.0,0.00029179,2]
[395319006,1764618655040,-2000.0,0.000292,2]
[395319007,1764618655049,-262.0,0.00029315,2]
[395319008,1764618655060,-490.0,0.00029316,2]
[395319009,1764618655069,-817.31122727,0.00029359,2]
[395319010,1764618655079,-151.0,0.00029421,7]
[395319011,1764618655088,-151.0,0.00029421,7]
[395319012,1764618655100,-151.0,0.00029421,7]
[395319013,1764618655109,-490.0,0.00029453,2]
[395319014,1764618655118,-490.0,0.0002959,2]
[395319015,1764618655127,-262.0,0.00029726,2]
[395319016,1764618655136,-492.0,0.00029727,2]
[395319017,1764618655146,-500.0,0.00029997,7]
[395319018,1764618655156,-548.18976066,0.0003,2]
[395319019,1764618655166,-1000.0,0.0003,9]
[395319020,1764618655175,-1000.0,0.0003,9]
[395319021,1764618655185,-386.0,0.0003,7]
[395319022,1764618655195,-499.999999,0.0003013,2]
[395319023,1764618655204,-500.0,0.00030136,120]
[395319024,1764618655214,-500.0,0.00030136,120]
[395319025,1764618655225,-262.0,0.00030137,7]
[395319026,1764618655235,-500.0,0.00030191,7]
[395319027,1764618655245,-1379.96391513,0.00030336,2]
[395319028,1764618655255,-320.74051982,0.00030466,2]
[395319029,1764618655264,-501.93,0.00030494,2]
[395319030,1764618655274,-170.27,0.000305,30]
[395319031,1764618655283,-262.0,0.00030548,7]
[395319032,1764618655293,-262.0,0.00030959,7]
[395319033,1764618655303,-262.0,0.0003137,7]
[395319034,1764618655313,-169.29,0.00031507,120]
[395319035,1764618655323,-262.0,0.00031781,7]
[395319036,1764618655333,-332.60791905,0.00031835,2]
[395319037,1764618655343,-179.21948029,0.00032,120]
[395319038,1764618655352,-177.77709657,0.00032,120]
[395319039,1764618655362,-196.81039577,0.00032,120]
[395319040,1764618655372,-213.70809034,0.00032,120]
[395319041,1764618655381,-179.35575281,0.00032,2]
[395319042,1764618655391,-262.0,0.00032192,7]
[395319043,1764618655401,-500.0,0.00032486,7]
[395319044,1764618655673,-262.0,0.00032603,7]
[395319045,1764618655684,-152.0,0.00032737,3]
[395319046,1764618655694,-500.0,0.00032864,7]
[395319047,1764618655704,-1063.88,0.00032876,120]
[395319048,1764618655713,-151.0,0.00032877,31]
[395319049,1764618655722,-151.0,0.00032877,31]
[395319050,1764618655732,-152.089249,0.00032877,31]
[395319051,1764618655741,-151.0,0.00032877,31]
[395319052,1764618655751,-151.0,0.00032877,31]
[395319053,1764618655760,-151.0,0.00032877,31]
[395319054,1764618655770,-151.0,0.00032877,31]
[395319055,1764618655779,-151.0,0.00032877,31]
[395319056,1764618655789,-151.0,0.00032877,31]
[395319057,1764618655799,-151.0,0.00032877,31]
[395319058,1764618655807,-151.0,0.00032877,31]
[395319059,1764618655817,-151.0,0.00032877,31]
[395319060,1764618655826,-151.0,0.00032877,31]
[395319061,1764618655837,-151.0,0.00032877,31]
[395319062,1764618655846,-151.0,0.00032877,31]
[395319063,1764618655855,-151.0,0.00032877,31]
[395319064,1764618655866,-151.0,0.00032877,31]
[395319065,1764618655876,-151.0,0.00032877,31]
[395319066,1764618655885,-151.0,0.00032877,31]
[395319067,1764618655894,-153.190089,0.00032877,31]
[395319068,1764618655904,-151.0,0.00032877,31]
[395319069,1764618655913,-151.0,0.00032877,31]
[395319070,1764618655922,-151.0,0.00032877,31]
[395319071,1764618655932,-151.0,0.00032877,31]
[395319072,1764618655941,-151.805657,0.00032877,31]
[395319073,1764618655950,-151.0,0.00032877,31]
[395319074,1764618655959,-151.0,0.00032877,31]
[395319075,1764618655969,-156.202636,0.00032877,31]
[395319076,1764618655978,-151.0,0.00032877,31]
[395319077,1764618655989,-151.0,0.00032877,31]
[395319078,1764618655998,-151.0,0.00032877,31]
[395319079,1764618656008,-163.438619,0.00032877,31]
[395319080,1764618656021,-178.766703,0.00032877,31]
[395319081,1764618656032,-151.0,0.00032877,31]
[395319082,1764618656042,-151.0,0.00032877,31]
[395319083,1764618656052,-151.0,0.00032877,31]
[395319084,1764618656062,-239.650717,0.00032877,31]
[395319085,1764618656071,-151.0,0.00032877,31]
[395319086,1764618656082,-151.0,0.00032877,31]
[395319087,1764618656097,-151.0,0.00032877,31]
[395319088,1764618656108,-157.633503,0.00032877,31]
[395319089,1764618656118,-152.270945,0.00032877,31]
[395319090,1764618656128,-151.0,0.00032877,31]
[395319091,1764618656138,-151.0,0.00032877,31]
[395319092,1764618656148,-151.0,0.00032877,31]
[395319093,1764618656158,-151.000002,0.00032877,31]
[395319094,1764618656168,-218.966974,0.00032877,31]
[395319095,1764618656178,-151.0,0.00032877,31]
[395319096,1764618656189,-151.0,0.00032877,31]
[395319097,1764618656199,-151.0,0.00032877,31]
[395319098,1764618656210,-224.464758,0.00032877,31]
[395319099,1764618656221,-151.0,0.00032877,31]
[395319100,1764618656231,-151.0,0.00032877,31]
[395319101,1764618656241,-151.0,0.00032877,31]
[395319102,1764618656251,-279.46107963,0.00032877,31]
[395319103,1764618656261,-151.266664,0.00032877,31]
[395319104,1764618656273,-151.0,0.00032877,31]
[395319105,1764618656283,-174.776997,0.00032877,31]
[395319106,1764618656293,-153.649362,0.00032877,31]
[395319107,1764618656303,-174.776997,0.00032877,31]
[395319108,1764618656313,-174.776997,0.00032877,31]
[395319109,1764618656323,-174.776997,0.00032877,31]
[395319110,1764618656334,-151.0,0.00032877,31]
[395319111,1764618656344,-151.0,0.00032877,31]
[395319112,1764618656354,-174.776997,0.00032877,31]
[395319113,1764618656364,-151.0,0.00032877,31]
[395319114,1764618656374,-174.776997,0.00032877,31]
[395319115,1764618656384,-151.0,0.00032877,31]
[395319116,1764618656394,-174.776997,0.00032877,31]
[395319117,1764618656404,-174.776997,0.00032877,31]
[395319118,1764618656415,-151.0,0.00032877,31]
[395319119,1764618656425,-151.0,0.00032877,31]
[395319120,1764618656434,-174.776997,0.00032877,31]
[395319121,1764618656444,-151.0,0.00032877,31]
[395319122,1764618656454,-174.776997,0.00032877,31]
[395319123,1764618656463,-151.0,0.00032877,31]
[395319124,1764618656473,-174.776997,0.00032877,31]
[395319125,1764618656483,-151.0,0.00032877,31]
[395319126,1764618656492,-174.776997,0.00032877,31]
[395319127,1764618656502,-151.0,0.00032877,31]
[395319128,1764618656513,-151.0,0.00032877,31]
[395319129,1764618656523,-174.776997,0.00032877,31]
[395319130,1764618656532,-174.776997,0.00032877,31]
[395319131,1764618656543,-248.668642,0.00032877,31]
[395319132,1764618656553,-174.776997,0.00032877,31]
[395319133,1764618656563,-174.776997,0.00032877,31]
[395319134,1764618656573,-151.0,0.00032877,31]
[395319135,1764618656583,-151.0,0.00032877,31]
[395319136,1764618656593,-159.187092,0.00032877,31]
[395319137,1764618656602,-151.0,0.00032877,31]
[395319138,1764618656612,-151.0,0.00032877,31]
[395319139,1764618656622,-151.0,0.00032877,31]
[395319140,1764618656631,-151.0,0.00032877,31]
[395319141,1764618656641,-151.0,0.00032877,31]
[395319142,1764618656652,-151.0,0.00032877,31]
[395319143,1764618656662,-151.0,0.00032877,31]
[395319144,1764618656672,-151.0,0.00032877,31]
[395319145,1764618656682,-151.0,0.00032877,31]
[395319146,1764618656691,-151.0,0.00032877,31]
[395319147,1764618656702,-164.161576,0.00032877,31]
[395319148,1764618656712,-151.0,0.00032877,31]
[395319149,1764618656721,-151.0,0.00032877,31]
[395319150,1764618656731,-251.390932,0.00032877,31]
[395319151,1764618656741,-212.498648,0.00032877,31]
[395319152,1764618656751,-151.0,0.00032877,31]
[395319153,1764618656761,-151.0,0.00032877,31]
[395319154,1764618656771,-151.0,0.00032877,31]
[395319155,1764618656781,-207.089068,0.00032877,31]
[395319156,1764618656791,-200.714576,0.00032877,31]
[395319157,1764618656801,-151.0,0.00032877,31]
[395319158,1764618656811,-151.0,0.00032877,31]
[395319159,1764618656821,-151.0,0.00032877,31]
[395319160,1764618656831,-151.0,0.00032877,31]
[395319161,1764618656840,-151.0,0.00032877,31]
[395319162,1764618656850,-151.0,0.00032877,15]
[395319163,1764618656860,-151.0,0.00032877,15]
[395319164,1764618656870,-151.0,0.00032877,15]
[395319165,1764618656880,-151.0,0.00032877,15]
[395319166,1764618656889,-151.0,0.00032877,15]
[395319167,1764618656899,-151.0,0.00032877,15]
[395319168,1764618656910,-151.0,0.00032877,15]
[395319169,1764618656920,-151.0,0.00032877,15]
[395319170,1764618656929,-151.0,0.00032877,15]
[395319171,1764618656939,-151.0,0.00032877,30]
[395319172,1764618656949,-151.0,0.00032877,30]
[395319173,1764618656958,-151.0,0.00032877,30]
[395319174,1764618656968,-151.0,0.00032877,31]
[395319175,1764618656978,-151.0,0.00032877,31]
[395319176,1764618656988,-156.339951,0.00032877,31]
[395319177,1764618656997,-151.0,0.00032877,31]
[395319178,1764618657007,-151.0,0.00032877,31]
[395319179,1764618657020,-270.306251,0.00032877,31]
[395319180,1764618657030,-270.306251,0.00032877,31]
[395319181,1764618657040,-270.306251,0.00032877,31]
[395319182,1764618657051,-270.306251,0.00032877,31]
[395319183,1764618657062,-270.306251,0.00032877,31]
[395319184,1764618657072,-196.461735,0.00032877,31]
[395319185,1764618657082,-270.306251,0.00032877,31]
[395319186,1764618657091,-196.461735,0.00032877,31]
[395319187,1764618657103,-196.461735,0.00032877,31]
[395319188,1764618657113,-270.306251,0.00032877,31]
[395319189,1764618657124,-270.306251,0.00032877,31]
[395319190,1764618657133,-270.306251,0.00032877,31]
[395319191,1764618657143,-196.461735,0.00032877,31]
[395319192,1764618657153,-196.461735,0.00032877,31]
[395319193,1764618657163,-196.461735,0.00032877,31]
[395319194,1764618657173,-270.306251,0.00032877,31]
[395319195,1764618657183,-270.306251,0.00032877,31]
[395319196,1764618657193,-270.306251,0.00032877,31]
[395319197,1764618657203,-196.461735,0.00032877,31]
[395319198,1764618657213,-196.461735,0.00032877,31]
[395319199,1764618657223,-196.461735,0.00032877,31]
[395319200,1764618657233,-196.461735,0.00032877,31]
[395319201,1764618657243,-196.461735,0.00032877,31]
[395319202,1764618657252,-196.461735,0.00032877,31]
[395319203,1764618657262,-151.0,0.00032877,31]
[395319204,1764618657273,-151.0,0.00032877,31]
[395319205,1764618657283,-151.0,0.00032877,31]
[395319206,1764618657294,-151.0,0.00032877,31]
[395319207,1764618657304,-151.0,0.00032877,31]
[395319208,1764618657314,-153.042065,0.00032877,31]
[395319209,1764618657324,-151.0,0.00032877,31]
[395319210,1764618657334,-229.751329,0.00032877,31]
[395319211,1764618657344,-293.449664,0.00032877,31]
[395319212,1764618657354,-293.449664,0.00032877,31]
[395319213,1764618657364,-293.449664,0.00032877,31]
[395319214,1764618657375,-293.449664,0.00032877,31]
[395319215,1764618657385,-293.449664,0.00032877,31]
[395319216,1764618657396,-293.449664,0.00032877,31]
[395319217,1764618657406,-293.449664,0.00032877,31]
[395319218,1764618657416,-293.449664,0.00032877,31]
[395319219,1764618657426,-293.449664,0.00032877,31]
[395319220,1764618657436,-293.449664,0.00032877,31]
[395319221,1764618657446,-293.449664,0.00032877,31]
[395319222,1764618657456,-293.449664,0.00032877,31]
[395319223,1764618657466,-151.0,0.00032877,31]
[395319224,1764618657476,-151.562127,0.00032877,31]
[395319225,1764618657487,-151.0,0.00032877,31]
[395319226,1764618657497,-153.510033,0.00032877,31]
[395319227,1764618657507,-151.0,0.00032877,31]
[395319228,1764618657518,-210.514668,0.00032877,31]
[395319229,1764618657527,-151.0,0.00032877,31]
[395319230,1764618657537,-151.0,0.00032877,31]
[395319231,1764618657547,-151.0,0.00032877,31]
[395319232,1764618657557,-151.0,0.00032877,31]
[395319233,1764618657567,-151.0,0.00032877,31]
[395319234,1764618657577,-151.0,0.00032877,31]
[395319235,1764618657587,-151.0,0.00032877,31]
[395319236,1764618657596,-151.0,0.00032877,31]
[395319237,1764618657606,-151.0,0.00032877,31]
[395319238,1764618657615,-233.134434,0.00032877,31]
[395319239,1764618657625,-233.134434,0.00032877,31]
[395319240,1764618657634,-233.134434,0.00032877,31]
[395319241,1764618657644,-233.134434,0.00032877,31]
[395319242,1764618657653,-233.134434,0.00032877,31]
[395319243,1764618657663,-233.134434,0.00032877,31]
[395319244,1764618657673,-233.134434,0.00032877,31]
[395319245,1764618657682,-233.134434,0.00032877,31]
[395319246,1764618657692,-233.134434,0.00032877,31]
[395319247,1764618657702,-233.134434,0.00032877,31]
[395319248,1764618657711,-1451.133867,0.00032877,31]
[395319249,1764618657721,-233.134434,0.00032877,31]
[395319250,1764618657731,-1451.133867,0.00032877,31]
[395319251,1764618657741,-233.134434,0.00032877,31]
[395319252,1764618657750,-1451.133867,0.00032877,31]
[395319253,1764618657763,-1451.133867,0.00032877,31]
[395319254,1764618657772,-158.364058,0.00032877,31]
[395319255,1764618657782,-1451.133867,0.00032877,31]
[395319256,1764618657792,-680.02827327,0.00032877,31]
[395319257,1764618657811,-771.10559373,0.00032877,31]
[395319258,1764618657821,-151.0,0.00032877,31]
[395319259,1764618657830,-1451.133867,0.00032877,31]
[395319260,1764618657840,-1451.133867,0.00032877,31]
[395319261,1764618657851,-1451.133867,0.00032877,31]
[395319262,1764618657860,-1451.133867,0.00032877,31]
[395319263,1764618657871,-1451.133867,0.00032877,31]
[395319264,1764618657882,-1451.133867,0.00032877,31]
[395319265,1764618657892,-151.0,0.00032877,31]
[395319266,1764618657902,-151.0,0.00032877,31]
[395319267,1764618657911,-151.0,0.00032877,31]
[395319268,1764618657921,-151.0,0.00032877,31]
[395319269,1764618657931,-151.0,0.00032877,31]
[395319270,1764618657941,-151.0,0.00032877,31]
[395319271,1764618657951,-268.291595,0.00032877,31]
[395319272,1764618657961,-151.0,0.00032877,31]
[395319273,1764618657970,-151.0,0.00032877,31]
[395319274,1764618657980,-151.0,0.00032877,31]
[395319275,1764618657990,-151.0,0.00032877,31]
[395319276,1764618658000,-151.0,0.00032877,31]
[395319277,1764618658010,-151.0,0.00032877,31]
[395319278,1764618658024,-151.0,0.00032877,31]
[395319279,1764618658034,-151.0,0.00032877,31]
[395319280,1764618658043,-151.0,0.00032877,31]
[395319281,1764618658053,-151.0,0.00032877,31]
[395319282,1764618658063,-151.0,0.00032877,31]
[395319283,1764618658074,-151.0,0.00032877,31]
[395319284,1764618658084,-151.0,0.00032877,31]
[395319285,1764618658206,-151.0,0.00032877,31]
[395319286,1764618658218,-151.0,0.00032877,31]
[395319287,1764618658230,-151.0,0.00032877,31]
[395319288,1764618658239,-151.0,0.00032877,31]
[395319289,1764618658249,-151.0,0.00032877,31]
[395319290,1764618658259,-150.0,0.00032877,5]
[395319291,1764618658268,-151.0,0.00032877,31]
[395319292,1764618658278,-151.0,0.00032877,31]
[395319293,1764618658287,-157.594908,0.00032877,14]
[395319294,1764618658297,-157.594908,0.00032877,14]
[395319295,1764618658306,-151.0,0.00032877,31]
[395319296,1764618658316,-157.594908,0.00032877,14]
[395319297,1764618658325,-151.0,0.00032877,31]
[395319298,1764618658335,-157.594908,0.00032877,14]
[395319299,1764618658344,-153.899692,0.00032877,31]
[395319300,1764618658355,-151.0,0.00032877,31]
[395319301,1764618658364,-151.0,0.00032877,31]
[395319302,1764618658374,-276.282517,0.00032877,31]
[395319303,1764618658383,-151.0,0.00032877,31]
[395319304,1764618658393,-168.160526,0.00032877,31]
[395319305,1764618658403,-154.567668,0.00032877,31]
[395319306,1764618658413,-151.0,0.00032877,31]
[395319307,1764618658423,-151.0,0.00032877,31]
[395319308,1764618658432,-185.407558,0.00032877,31]
[395319309,1764618658442,-150.0,0.00032877,60]
[395319310,1764618658451,-150.0,0.00032877,60]
[395319311,1764618658461,-203.75545197,0.00032877,60]
[395319312,1764618658471,-325.28,0.000329,14]
[395319313,1764618658480,-4996.95,0.000329,14]
[395319314,1764618658490,-5286.04,0.000329,2]
[395319315,1764618658499,-2000.0,0.000329,2]
[395319316,1764618658509,-177.77709657,0.00033,120]
[395319317,1764618658518,-213.70809034,0.00033,120]
[395319318,1764618658528,-1000.0,0.00033,12]
[395319319,1764618658538,-262.0,0.00033014,7]
[395319320,1764618658548,-611.22,0.00033165,2]
[395319321,1764618658557,-344.91441206,0.00033204,2]
[395319322,1764618658567,-450.05888662,0.00033269,2]
[395319323,1764618658576,-206.45164451,0.00033425,5]
[395319324,1764618658586,-262.0,0.00033425,7]
[395319325,1764618658596,-1000.0,0.00033449,7]
[395319326,1764618658606,-157.64132354,0.00033675,2]
[395319327,1764618658615,-1063.88,0.00033698,120]
[395319328,1764618658625,-500.0,0.00033738,31]
[395319329,1764618658634,-5286.04,0.000338,2]
[395319330,1764618658644,-262.0,0.00033836,7]
[395319331,1764618658653,-500.0,0.00033939,60]
[395319332,1764618658663,-810.48233963,0.00034099,2]
[395319333,1764618660003,-3972.63766037,0.00034099,2]
[395319334,1764618660014,-325.28,0.000341,14]
[395319335,1764618660029,-4996.95,0.000341,14]
[395319336,1764618660040,-1379.96391513,0.00034206,2]
[395319337,1764618660051,-262.0,0.00034247,7]
[395319338,1764618660063,-1214.1,0.000345,14]
[395319339,1764618660074,-1063.88,0.0003452,120]
[395319340,1764618660085,-357.6762453,0.00034573,2]
[395319341,1764618660096,-262.0,0.00034658,7]
[395319342,1764618660107,-737.46005421,0.00034821,60]
[395319343,1764618660117,-5286.04,0.000349,2]
[395319344,1764618660127,-1009.0,0.00035,15]
[395319345,1764618660137,-1000.0,0.00035,12]
[395319346,1764618660502,-519.999999,0.00035,2]
[395319347,1764618660541,-150.72,0.00035,2]
[395319348,1764618660568,-11115.9566302,0.00035,2]
[395319349,1764618660578,-262.0,0.00035068,7]
[395319350,1764618660587,-1063.88,0.00035342,120]
[395319351,1764618660596,-262.0,0.00035479,7]
[395319352,1764618660606,-500.0,0.00035616,2]
[395319353,1764618660615,-150.0,0.00035616,120]
[395319354,1764618660624,-325.28,0.000357,14]
[395319355,1764618660635,-4659.2310339,0.000357,14]
[395319356,1764618660646,-337.7189661,0.000357,14]
[395319357,1764618660656,-500.0,0.00035724,30]
[395319358,1764618660667,-199.0,0.0003589,7]
[395319359,1764618660676,-262.0,0.0003589,14]
[395319360,1764618660687,-370.91026638,0.00035942,2]
[395319361,1764618660696,-597.89,0.00035946,2]
[395319362,1764618660706,-566.14423313,0.00036135,30]